Cogmind - Beta 14 @@@ ROGUE MODE // 2024.09.14 @ 14:02:14 Player: ZarZap Result: Self-destructed Performance ------------- Evolutions (1) 500 Regions Visited (4) 800 Robots Destroyed (11) 55 Value Destroyed (162) 162 Prototype IDs (1) 20 Alien Tech Used (0) 0 Bonus (39) 39 TOTAL SCORE: 1576 Bonus ------- Follower Combat Kills 39 Cogmind --------- Core Integrity 104/400 Matter 224/300 Energy 13/100 System Corruption 0% Temperature Cool (10) Movement Walking (130) Location -9/Mines Parts ------- > --- POWER (1) -------- (None) > --- PROPULSION (4) --- Improved Titanium Leg > --- UTILITY (2) ------ Microactuators Core Shielding > --- WEAPON (2) ------- EM Pulse Gun Light Assault Rifle > --- INVENTORY (5) ---- Large Storage Unit Structural Scanner EM Pulse Gun Peak State ------------ > --- POWER ------------ (None) > --- PROPULSION ------- Improved Titanium Leg > --- UTILITY ---------- Microactuators Core Shielding > --- WEAPON ----------- EM Pulse Gun Light Assault Rifle > --- INVENTORY -------- Large Storage Unit Structural Scanner EM Pulse Gun [Rating: 11] Favorites ----------- Power Ion Engine Engine Ion Engine Propulsion Aluminum Leg Leg Aluminum Leg Utility Core Shielding Device Microactuators Storage Large Storage Unit Protection Core Shielding Weapon EM Pulse Gun Energy Gun EM Pulse Gun Ballistic Gun Light Assault Rifle Build | -11 -10 -10 -9 -9 ------- Run | Yrd Mat Min Mat Min Slots Evolved 2 | . . . 2 . Power . | . . . . . Propulsion 2 | . . . 2 . Utility . | . . . . . Weapon . | . . . . . Parts Attached 16 | 6 3 . 1 6 Power 3 | 1 1 . . 1 Engine 3 | 1 1 . . 1 Core . | . . . . . Reactor . | . . . . . Propulsion 3 | 2 . . . 1 Treads . | . . . . . Leg 3 | 2 . . . 1 Wheel . | . . . . . Hover . | . . . . . Flight . | . . . . . Utility 5 | 1 2 . . 2 Device 1 | . . . . 1 Storage 2 | 1 1 . . . Processor . | . . . . . Hackware . | . . . . . Protection 2 | . 1 . . 1 Artifact . | . . . . . Weapon 5 | 2 . . 1 2 Energy Gun 2 | 1 . . . 1 Energy Cannon . | . . . . . Ballistic Gun 3 | 1 . . 1 1 Ballistic Cannon . | . . . . . Launcher . | . . . . . Special Weapon . | . . . . . Impact Weapon . | . . . . . Slashing Weapon . | . . . . . Piercing Weapon . | . . . . . Special Melee Weapon . | . . . . . Unidentified Prototypes 1 | . . . 1 . Parts Lost 7 | . . . 1 6 Power 2 | . . . . 2 Propulsion 2 | . . . . 2 Utility 1 | . . . . 1 Weapon 2 | . . . 1 1 Highest Loss Streak 6 | . . . 1 6 To Critical Strikes . | . . . . . Average Slot Usage (%) 85 | . 91 100 77 57 Engine 12 | . 14 14 11 7 Leg 25 | . 28 28 22 17 Storage 12 | . 14 14 11 8 Protection 10 | . 6 14 11 11 Energy Gun 11 | . 14 14 11 1 Ballistic Gun 12 | . 14 14 11 9 Peak Build Rating 11 | 6 7 7 9 11 Average Rating 6 | 4 6 7 7 7 On Entrance 5 | . 6 7 7 8 Naked Turns . | . . . . . Heaviest Build 31 | 11 29 29 31 29 Greatest Support 20 | 20 20 20 20 20 Greatest Overweight (x) 3 | 3 1 1 1 2 Average Overweight (x) . | . . 1 1 . Largest Inventory Capacity 15 | 8 15 15 15 15 Average Capacity 12 | 7 9 15 15 12 Most Carried 9 | 2 9 9 9 9 Average Carried 6 | . 4 9 9 7 Final Capacity 15 | 8 15 15 15 5 Final Carried 9 | 2 9 9 9 3 Class Distribution -------------------- 100% | Mutant Dominant Class ---------------- Mutant | -10/Materials Mutant | -10/Mines Mutant | -9/Materials Mutant | -9/Mines Resources | -11 -10 -10 -9 -9 ----------- Run | Yrd Mat Min Mat Min Matter Collected 273 | 119 100 54 . . Remotely . | . . . . . Salvage Created 208 | . 62 55 91 . Parts 24 | . 7 3 14 . Haulers Intercepted . | . . . . . Recyclers Shooed 1 | . 1 . . . Parts Field Recycled . | . . . . . Retrieved Matter . | . . . . . Parts Self-Destructed . | . . . . . Prevented . | . . . . . Kills | -11 -10 -10 -9 -9 ------- Run | Yrd Mat Min Mat Min Combat Hostiles Destroyed 8 | . 3 3 2 . Guns 6 | . 1 3 2 . AOE 2 | . 2 . . . Classes Destroyed 4 | . 2 . 2 . Operator 1 | . 1 . . . Watcher 2 | . . . 2 . Swarmer 7 | . 3 3 1 . Grunt 1 | . . . 1 . Best Kill Streak 3 | . 3 3 3 . Combat Bots Only 3 | . 3 3 2 . Max Kills in Single Turn 2 | . 2 1 1 . Gunslinging . | . . . . . Exploded 2 | . 2 . . . Melee . | . . . . . Uniques/NPCs Destroyed . | . . . . . Combat | -11 -10 -10 -9 -9 -------- Run | Yrd Mat Min Mat Min Hostile Shots Fired 74 | . 7 14 40 13 Missed 15 | . 2 5 7 1 Damage Taken 974 | . 43 70 389 472 Core 314 | . 10 8 124 172 Absorbed by Shields . | . . . . . Redirected to Shielding 59 | . . 2 25 32 Core Remaining (%) 96 | 100 . 92 . . Volleys Fired 27 | . 11 5 8 3 Largest 2 | . 2 2 2 2 Hottest 63 | . 60 60 63 60 Shots Fired 54 | . 22 10 16 6 Gun 54 | . 22 10 16 6 Cannon . | . . . . . Launcher . | . . . . . Special . | . . . . . Kinetic 27 | . 11 5 8 3 Thermal . | . . . . . Explosive . | . . . . . Electromagnetic 27 | . 11 5 8 3 Robot Hit Streak 5 | . 5 3 3 4 Robot Miss Streak 3 | . 3 3 2 3 Penetration Max . | . . . . . Secondary Targets . | . . . . . Shots Hit Robots 28 | . 10 6 9 3 Core Hits 15 | . 5 4 6 . Critical Kills . | . . . . . Critical Parts Destroyed . | . . . . . Critical Strikes 1 | . . . 1 . Corrupt 1 | . . . 1 . Melee Attacks . | . . . . . Impact . | . . . . . Slashing . | . . . . . Piercing . | . . . . . Sneak Attacks . | . . . . . Combat Hostiles . | . . . . . Follow-up Attacks . | . . . . . Damage Inflicted 522 | . 253 63 187 19 Guns 339 | . 98 54 168 19 Cannons . | . . . . . Explosions 155 | . 155 . . . Melee . | . . . . . Ramming 28 | . . 9 19 . Kinetic 153 | . 23 31 90 9 Thermal 155 | . 155 . . . Explosive . | . . . . . Electromagnetic 186 | . 75 23 78 10 Impact . | . . . . . Slashing . | . . . . . Piercing . | . . . . . Highest Corruption . | . . . . . Average Corruption . | . . . . . Corruption Purged . | . . . . . Corruption Blocked . | . . . . . Overload Shots . | . . . . . Overflow Damage . | . . . . . Projectiles . | . . . . . Explosions . | . . . . . Melee . | . . . . . Knockbacks . | . . . . . Impact . | . . . . . Kinetic . | . . . . . Secondary . | . . . . . Self-Inflicted Damage . | . . . . . Shots . | . . . . . Rammed . | . . . . . Targets Rammed 6 | . . 3 3 . Kicked 6 | . . 3 3 . Crushed . | . . . . . Highest Temperature 48 | . 40 20 48 4 Average Temperature 15 | . 17 15 20 3 Received Heat Transfer 147 | . . . 141 6 Siege Activations . | . . . . . Robots Corrupted . | . . . . . Combat Hostiles . | . . . . . Parts Fried . | . . . . . Impact Corruptions . | . . . . . Robots Melted . | . . . . . Combat Hostiles . | . . . . . Parts Melted . | . . . . . Heat Transferred 200 | . 200 . . . Parts Sabotaged . | . . . . . Parts Stolen . | . . . . . Parts Stripped . | . . . . . Power Chain Reactions 2 | . 2 . . . Alert | -11 -10 -10 -9 -9 ------- Run | Yrd Mat Min Mat Min Peak Influence 132 | . 100 124 132 51 Initial 48 | . . 39 48 47 Average 66 | . 68 97 63 34 Maximum Alert Level . | . . . . . Low Security (%) 100 | 100 100 100 100 100 Level 1 . | . . . . . Level 2 . | . . . . . Level 3 . | . . . . . Level 4 . | . . . . . Level 5 . | . . . . . High Security . | . . . . . Max Security . | . . . . . Squads Dispatched 1 | . . . . 1 Investigation 1 | . . . . 1 Extermination . | . . . . . Reinforcement . | . . . . . Assault . | . . . . . Garrison . | . . . . . Intercept . | . . . . . Searches Triggered . | . . . . . Construction Impeded . | . . . . . Haulers Reinforced . | . . . . . Active Scanning Responses . | . . . . . Cargo Convoy Interrupts . | . . . . . Stealth | -11 -10 -10 -9 -9 --------- Run | Yrd Mat Min Mat Min Distress Signals 2 | . . . 2 . Communications Jammed . | . . . . . Distress Signals . | . . . . . Times Spotted 27 | . 6 3 8 10 Peak Tracking Total 6 | . 3 3 5 6 Tactical Retreats . | . . . . . Traps | -11 -10 -10 -9 -9 ------- Run | Yrd Mat Min Mat Min Traps Triggered . | . . . . . Indirectly . | . . . . . Trap Hack Attempts . | . . . . . Triggered . | . . . . . Disarmed . | . . . . . Reprogrammed . | . . . . . Reused . | . . . . . Traps Extracted . | . . . . . Installed . | . . . . . Triggered . | . . . . . Machines | -11 -10 -10 -9 -9 ---------- Run | Yrd Mat Min Mat Min Machines Disabled 1 | . . 1 . . Max in Single Turn 1 | . . 1 . . Machines Repaired . | . . . . . Machines Dismantled . | . . . . . Machines Sabotaged . | . . . . . Overloaded Fab Kills . | . . . . . Hacking | -11 -10 -10 -9 -9 --------- Run | Yrd Mat Min Mat Min Machines Accessed 1 | . 1 . . . Terminals . | . . . . . Fabricators . | . . . . . Repair Stations . | . . . . . Recycling Units 1 | . 1 . . . Scanalyzers . | . . . . . Garrison Access . | . . . . . Total Hacks 1 | . 1 . . . Successful . | . . . . . Failed 1 | . 1 . . . Catastrophic . | . . . . . Database Lockouts . | . . . . . Manual . | . . . . . Terminals . | . . . . . Fabricators . | . . . . . Repair Stations . | . . . . . Recycling Units 1 | . 1 . . . Scanalyzers . | . . . . . Garrison Access . | . . . . . Terminal Hacks . | . . . . . Fabricator Hacks . | . . . . . Repair Station Hacks . | . . . . . Recycling Unit Hacks . | . . . . . Scanalyzer . | . . . . . Garrison Access Hacks . | . . . . . Unauthorized Hacks . | . . . . . Terminals . | . . . . . Fabricators . | . . . . . Repair Stations . | . . . . . Recycling Units . | . . . . . Scanalyzers . | . . . . . Garrison Access . | . . . . . Data Cores Recovered 1 | . 1 . . . Used . | . . . . . Hacking Detections . | . . . . . Full Trace Events . | . . . . . Feedback Events . | . . . . . Feedback Blocked . | . . . . . Robot Schematics Acquired . | . . . . . Robots Built . | . . . . . Authchips . | . . . . . Time . | . . . . . Total Robot Build Rating . | . . . . . Part Schematics Acquired . | . . . . . Parts Built . | . . . . . Authchips . | . . . . . Time . | . . . . . Total Part Build Rating . | . . . . . Parts Repaired . | . . . . . Time . | . . . . . Parts Recycled . | . . . . . Recycled Matter . | . . . . . Retrieved Matter . | . . . . . Retrieved Components . | . . . . . Parts Scanalyzed . | . . . . . Part Schematics Acquired . | . . . . . Parts Damaged . | . . . . . Bothacking | -11 -10 -10 -9 -9 ------------ Run | Yrd Mat Min Mat Min Used RIF Installer . | . . . . . Robots Hacked . | . . . . . Non-combat . | . . . . . Combat . | . . . . . Robot Hacks Applied . | . . . . . Relay Couplers Released . | . . . . . Fabnet Peak Effective % . | . . . . . Robots Rewired . | . . . . . Allies Hacked . | . . . . . Hacks Repelled . | . . . . . Allies | -11 -10 -10 -9 -9 -------- Run | Yrd Mat Min Mat Min Total Allies 2 | . . . . 2 Largest Group 2 | . . . . 2 Highest-Rated Group 55 | . . . . 55 Highest-Rated Ally 31 | . . . . 31 Total Orders . | . . . . . Ally Attacks 4 | . . . . 4 Total Damage 62 | . . . . 62 Kills 1 | . . . . 1 Allies Corrupted . | . . . . . Allies Melted . | . . . . . Intel | -11 -10 -10 -9 -9 ------- Run | Yrd Mat Min Mat Min Robot Analysis Total . | . . . . . Derelict Logs Recovered . | . . . . . Drone Launches . | . . . . . Drone Recoveries . | . . . . . Exploration | -11 -10 -10 -9 -9 ------------- Run | Yrd Mat Min Mat Min Turns Passed 859 | 56 291 223 173 116 Spaces Moved 465 | 36 187 108 75 59 Core 22 | 15 . . . 7 Treads . | . . . . . Legs 443 | 21 187 108 75 52 Wheels . | . . . . . Hover . | . . . . . Flight . | . . . . . Fastest Speed 50 | 50 120 190 190 50 Average Speed 159 | 127 133 190 190 167 Slowest Speed 260 | 200 190 190 190 260 Overloaded Moves . | . . . . . Propulsion Burnouts . | . . . . . Robots Hopped . | . . . . . Cave-ins Triggered . | . . . . . Exploration Rate (%) 22 | 4 36 29 19 23 Regions Visited 4 Branch Regions 2 Pre-discovered Areas . | . . . . . Known Exits Taken . | . . . . . Unknown Exits Taken 4 | 1 1 1 1 . Scrap Searched 1 | . . 1 . . Spaces Dug . | . . . . . Terrain Destroyed 10 | . 10 . . . Melee . | . . . . . Projectile . | . . . . . AOE 10 | . 10 . . . Terrain Rammed . | . . . . . Walls Destroyed . | . . . . . Machines Disabled . | . . . . . Actions | -11 -10 -10 -9 -9 --------- Run | Yrd Mat Min Mat Min Total 523 | 43 209 115 87 69 Wait 2 | . . . 1 1 Move 461 | 35 186 107 74 59 Hop . | . . . . . Pick Up 10 | 2 8 . . . Fast Attach 10 | 6 2 . . 2 Attach 3 | . . . . 3 Detach . | . . . . . Swap 3 | . 1 . 1 1 Drop 1 | . 1 . . . Fire 27 | . 11 5 8 3 Melee . | . . . . . Ram . | . . . . . Kick 6 | . . 3 3 . Crush . | . . . . . Escape Stasis . | . . . . . Rewire . | . . . . . Trap . | . . . . . Miscellaneous . | . . . . . Route ------- -11/Scrapyard -10/Materials -10/Mines -9/Materials -9/Mines History --------- Turn | Location | Event 24 | -11/Scrapyard | Discovered new exit (range 14) 57 | -11/Scrapyard | Entered Materials 308 | -10/Materials | Discovered new exit (range 11) 318 | -10/Materials | Build established: Mutant 348 | -10/Materials | Entered Mines 361 | -10/Mines | Met a Derelict bent on vengeance 560 | -10/Mines | Discovered new exit (range 5) 571 | -10/Mines | Entered Materials 571 | -9/Materials | Evolved 2 slots: Propulsion x2 731 | -9/Materials | Discovered new exit (range 6) 744 | -9/Materials | Entered Mines 814 | -9/Mines | Assembled infested the area 837 | -9/Mines | Core integrity fell below 50% 839 | -9/Mines | Met a Derelict shopkeep closing up shop 860 | -9/Mines | Self-destructed Last Messages --------------- from me!" 00839_ R-06 Scavenger collects Mak. Ablative Armor. 00839_ S-10 Pest destroyed. 00841_ ALERT: Derelict activity detected in mines. Dispatching investigation squad. 00843_ NH-3CB(g): "Well, take what you want I guess, I've had enough of this place!" 00843_ Acquired Imp. Titanium Leg. 00844_ Core Shielding destroyed. 00844_ Machine disabled. 00845_ S-10 Pest destroyed. 00846_ Acquired Microactuators. 00849_ NH-3CB(g) destroyed. 00849_ R-06 Scavenger collects EM Pulse Gun. 00850_ The unstable cave ceiling collapses. 00850_ as-03026 destroyed. 00852_ as-15750 sneak attacks. 00854_ as-15750 destroyed. 00858_ K-01 Serf collects debris. 00860_ Machine disabled. Map ----- +----------------------------------------------------+ | ?????????????????????????????????????????????????? | | ?????????????????????????????????????????????????? | | ?????????????????????????????????????????????????? | | ?????????????????????????????????????????????????? | | ?????????????????????????????????????????????????? | | ?????????????????????????????????????????????????? | | ?????????????????????????????????????????????????? | | ?????????????????????????????????????????????????? | | ?????????????????????????????????????????????????? | | ?????????????????????????????????????????????????? | | ?????????????????????????????????????????????????? | | ?????????????????????????????????????????????????? | | ?????????????????????????????????????????????????? | | ?????????????????????????????????????????????????? | | ?????????????????????????????????????????????????? | | ?????????????????????????????????????????????????? | | ??????????????????????????####???????????????????? | | ??????????????????????????# ##??????????????????? | | ??????????????????????#### #??????????????????? | | ?????????????????????##""## ##?????????????????? | | ?????????????????????#"![ # ##????????????????? | | ?????????????????????#"= " ##???????????????? | | ?????????????????????# " #???????????????? | | ?????????????????????#" ##??????????????? | | ?????????????????????# #??????????????? | | ?????????????????????## @ #??????????????? | | ??????????????????????# ###??????????????? | | ?????????????????????# #????????????? | | ?????????????????????## ###?????????? | | ?????????????????#????## % [% #?????????? | | ?????????????????? ???##g d [%= #?????????? | | ????????????????## ### g =%! #$ #?????????? | | ????????????????# "% =k * #? ????????? | | ?????????????? !% ##??? ???????? | | ?????????????? #### k % ##?????????????? | | ??????????????? ?????### # ##??????????????? | | ???????????????????????# # ???????????????? | | ???????????????????????# ##??????????????? | | ???????????????######### ## ####???????????????? | | ??????????????## #####??????????????????? | | ????????####### ##????????????????????? | | ????????# """ #???????????????????? | | ????????# ###### """ #??????????????????? | | ????????# #????## """ #??????????????????? | | ????????# #?????# ##??????????????????? | | ?#####??# #???## ####???????????????????? | | ## #### ### #??????????????????????? | | ## #??????????????????????? | | ##? ?????????????????????? | | #### ###### ##???# ????????????????????? | +----------------------------------------------------+ Best States ------------- Heat Dissipation 28 Energy Generation 10 Energy Capacity 250 Matter Stores 276 Matter Capacity 300 Sight Range 16 Terrain Scan Density 10 Core Shielding 20 Melee Speed Boost 20 Evasion (%) 55 Item Schematics ----------------- None Robot Schematics ------------------ None Fabricated ------------ Nothing Alien Tech Used ----------------- None Achievements -------------- None Challenges ------------ None Game ------ Seed ClaymoresMachineCharger Manual? 0 Play Time 00:08:37 Cumulative 14.4 hours Start 2024.09.14 @ 13:53:10 End 2024.09.14 @ 14:02:14 Sessions 1 Manual Loads 0 Difficulty Rogue Special Mode None Game No. 57 Rogue 57 Adventurer 0 Explorer 0 Win Type - Total 0 Types 0/0/0/0/0/0/0/0/0 Lore% 9 Gallery% 19 Achievement% 15 Wizard Run 0 Options --------- Layout 2 ASCII 0 Keyboard 0 Movement Mouse Keybinds 0 Fullscreen 1 Font 16/Smallcaps Map View 55x47 Zoom Use 0% Tactical HUD 1 Map Filters NONE Filters NONE Steam 1 RUN: 40010287-05b9-4483-8088-d45f62c3a730